[Event "Titled Tuesday Blitz February 21 Late 2023"]
[White "Svane, Rasmus"]
[Black "Pein, Jonathan"]
[WhiteFideId "4657101"]
[BlackFideId "417092"]
[WhiteElo "2623"]
[BlackElo "2265"]
[Result "1-0"]
[Round "01"]
[TimeControl "180+2"]
[Date "2023.02.21"]
[WhiteClock "0:01:05"]
[BlackClock "0:00:02"]

1. Nf3 {[%clk 0:03:00]}  g6 {[%clk 0:02:59]} 2. e4 {[%clk 0:03:00]}  Bg7 {[%clk 0:03:00]} 3. d4 {[%clk 0:03:00]}  d6 {[%clk 0:03:00]} 4. Bd3 {[%clk 0:03:00]}  a6 {[%clk 0:03:00]} 5. O-O {[%clk 0:02:59]}  e6 {[%clk 0:03:00]} 6. c3 {[%clk 0:02:59]}  Ne7 {[%clk 0:03:00]} 7. Re1 {[%clk 0:02:59]}  Nd7 {[%clk 0:03:01]} 8. Be3 {[%clk 0:02:55]}  h6 {[%clk 0:03:01]} 9. Nbd2 {[%clk 0:02:55]}  b6 {[%clk 0:02:58]} 10. Nf1 {[%clk 0:02:51]}  Bb7 {[%clk 0:02:58]} 11. Ng3 {[%clk 0:02:52]}  O-O {[%clk 0:02:56]} 12. Qd2 {[%clk 0:02:52]}  Kh7 {[%clk 0:02:56]} 13. Rad1 {[%clk 0:02:50]}  Nf6 {[%clk 0:02:56]} 14. h3 {[%clk 0:02:48]}  c5 {[%clk 0:02:46]} 15. Qe2 {[%clk 0:02:37]}  Qc7 {[%clk 0:02:43]} 16. Bf4 {[%clk 0:02:33]}  Nd7 {[%clk 0:02:32]} 17. h4 {[%clk 0:02:16]}  e5 {[%clk 0:02:30]} 18. dxe5 {[%clk 0:02:15]}  Nxe5 {[%clk 0:02:25]} 19. Nxe5 {[%clk 0:02:07]}  dxe5 {[%clk 0:02:25]} 20. Be3 {[%clk 0:02:07]}  h5 {[%clk 0:02:03]} 21. a4 {[%clk 0:02:01]}  Ng8 {[%clk 0:02:01]} 22. Bc4 {[%clk 0:01:58]}  Nf6 {[%clk 0:02:00]} 23. Bg5 {[%clk 0:01:58]}  Bc6 {[%clk 0:01:41]} 24. b3 {[%clk 0:01:54]}  Ng4 {[%clk 0:01:31]} 25. Bxa6 {[%clk 0:01:50]}  Bf6 {[%clk 0:01:00]} 26. f3 {[%clk 0:01:40]}  Bxg5 {[%clk 0:00:45]} 27. hxg5 {[%clk 0:01:40]}  Ne3 {[%clk 0:00:27]} 28. Rd2 {[%clk 0:01:40]}  c4 {[%clk 0:00:24]} 29. Bxc4 {[%clk 0:01:38]}  Nxc4 {[%clk 0:00:25]} 30. Qxc4 {[%clk 0:01:39]}  Qb7 {[%clk 0:00:25]} 31. Red1 {[%clk 0:01:28]}  b5 {[%clk 0:00:25]} 32. axb5 {[%clk 0:01:24]}  Bxb5 {[%clk 0:00:26]} 33. Qc5 {[%clk 0:01:24]}  Rfe8 {[%clk 0:00:21]} 34. c4 {[%clk 0:01:20]}  Bc6 {[%clk 0:00:19]} 35. Rd6 {[%clk 0:01:19]}  Rac8 {[%clk 0:00:18]} 36. Qe3 {[%clk 0:01:19]}  Qe7 {[%clk 0:00:11]} 37. Nh1 {[%clk 0:01:14]}  Red8 {[%clk 0:00:11]} 38. Rxd8 {[%clk 0:01:11]}  Rxd8 {[%clk 0:00:12]} 39. Rxd8 {[%clk 0:01:12]}  Qxd8 {[%clk 0:00:12]} 40. Nf2 {[%clk 0:01:13]}  h4 {[%clk 0:00:11]} 41. Kh2 {[%clk 0:01:10]}  Kg7 {[%clk 0:00:08]} 42. Ng4 {[%clk 0:01:10]}  Qd6 {[%clk 0:00:06]} 43. Qf2 {[%clk 0:01:10]}  Bd7 {[%clk 0:00:06]} 44. Nf6 {[%clk 0:01:04]}  h3 {[%clk 0:00:05]} 45. Qh4 {[%clk 0:01:05]}  Kf8 {[%clk 0:00:02]} 46. Qh8+ {[%clk 0:01:05]}  Ke7 {[%clk 0:00:02]} 47. Nd5+ {[%clk 0:01:05]} 1-0


[Site "https://www.chess.com"]

[Event "Titled Tuesday Blitz February 21 Late 2023"]
[White "Ezat, Mohamed"]
[Black "Bortnyk, Mykola"]
[WhiteFideId "10600906"]
[BlackFideId "14120836"]
[WhiteElo "2402"]
[BlackElo "2425"]
[Result "1/2-1/2"]
[Round "01"]
[TimeControl "180+2"]
[Date "2023.02.21"]
[WhiteClock "0:00:23"]
[BlackClock "0:01:03"]

1. d4 {[%clk 0:03:00]}  g6 {[%clk 0:02:58]} 2. c4 {[%clk 0:02:59]}  Bg7 {[%clk 0:02:58]} 3. e4 {[%clk 0:02:59]}  d6 {[%clk 0:02:55]} 4. Nc3 {[%clk 0:02:58]}  e6 {[%clk 0:02:55]} 5. Be2 {[%clk 0:02:55]}  Ne7 {[%clk 0:02:54]} 6. h4 {[%clk 0:02:55]}  h6 {[%clk 0:02:54]} 7. Be3 {[%clk 0:02:54]}  Nd7 {[%clk 0:02:53]} 8. Qd2 {[%clk 0:02:53]}  b6 {[%clk 0:02:53]} 9. O-O-O {[%clk 0:02:48]}  Bb7 {[%clk 0:02:52]} 10. Nf3 {[%clk 0:02:47]}  a6 {[%clk 0:02:50]} 11. Kb1 {[%clk 0:02:45]}  e5 {[%clk 0:02:49]} 12. dxe5 {[%clk 0:02:41]}  Nxe5 {[%clk 0:02:50]} 13. Nxe5 {[%clk 0:02:41]}  dxe5 {[%clk 0:02:49]} 14. Nd5 {[%clk 0:02:39]}  Nxd5 {[%clk 0:02:44]} 15. cxd5 {[%clk 0:02:37]}  Qd6 {[%clk 0:02:40]} 16. Rc1 {[%clk 0:02:33]}  f5 {[%clk 0:02:36]} 17. f3 {[%clk 0:02:30]}  f4 {[%clk 0:02:34]} 18. Bf2 {[%clk 0:02:30]}  O-O {[%clk 0:02:26]} 19. Rc3 {[%clk 0:02:10]}  c5 {[%clk 0:02:21]} 20. g3 {[%clk 0:01:55]}  fxg3 {[%clk 0:02:14]} 21. Bxg3 {[%clk 0:01:55]}  b5 {[%clk 0:02:12]} 22. Rhc1 {[%clk 0:01:49]}  Rac8 {[%clk 0:02:11]} 23. R3c2 {[%clk 0:01:41]}  Kh7 {[%clk 0:02:04]} 24. Bf2 {[%clk 0:01:40]}  c4 {[%clk 0:02:04]} 25. Be3 {[%clk 0:01:32]}  Qf6 {[%clk 0:01:57]} 26. Rh1 {[%clk 0:01:27]}  a5 {[%clk 0:01:47]} 27. Qxa5 {[%clk 0:01:23]}  Ra8 {[%clk 0:01:45]} 28. Qxb5 {[%clk 0:01:15]}  Ba6 {[%clk 0:01:45]} 29. Qc6 {[%clk 0:01:12]}  Qf7 {[%clk 0:01:43]} 30. h5 {[%clk 0:01:10]}  gxh5 {[%clk 0:01:43]} 31. Qe6 {[%clk 0:00:54]}  Qxe6 {[%clk 0:01:39]} 32. dxe6 {[%clk 0:00:54]}  Rae8 {[%clk 0:01:39]} 33. Rxh5 {[%clk 0:00:53]}  Rxe6 {[%clk 0:01:39]} 34. Rc1 {[%clk 0:00:49]}  c3 {[%clk 0:01:38]} 35. Bxa6 {[%clk 0:00:48]}  cxb2 {[%clk 0:01:34]} 36. Rc7 {[%clk 0:00:42]}  Rxa6 {[%clk 0:01:33]} 37. Rxe5 {[%clk 0:00:41]}  Rxf3 {[%clk 0:01:30]} 38. Bd4 {[%clk 0:00:39]}  Ra4 {[%clk 0:01:19]} 39. Rd5 {[%clk 0:00:37]}  Rf1+ {[%clk 0:01:09]} 40. Kxb2 {[%clk 0:00:36]}  Rxd4 {[%clk 0:01:06]} 41. Rxd4 {[%clk 0:00:36]}  Kg6 {[%clk 0:01:06]} 42. Rxg7+ {[%clk 0:00:31]}  Kxg7 {[%clk 0:01:07]} 43. a4 {[%clk 0:00:31]}  h5 {[%clk 0:01:07]} 44. e5 {[%clk 0:00:31]}  Re1 {[%clk 0:01:06]} 45. Rh4 {[%clk 0:00:23]}  Rxe5 {[%clk 0:01:03]} 46. Kb3 {[%clk 0:00:23]} 1/2-1/2


[Site "https://www.chess.com"]

[Event "Titled Tuesday Blitz February 21 Late 2023"]
[White "Sjugirov, Sanan"]
[Black "CheckBits"]
[WhiteFideId "4189302"]
[WhiteElo "2712"]
[BlackElo "2452"]
[Result "1-0"]
[Round "01"]
[TimeControl "180+2"]
[Date "2023.02.21"]
[WhiteClock "0:01:06"]
[BlackClock "0:00:02"]

1. d4 {[%clk 0:02:59]}  e6 {[%clk 0:02:59]} 2. c4 {[%clk 0:02:57]}  Nf6 {[%clk 0:02:57]} 3. Nf3 {[%clk 0:02:57]}  d5 {[%clk 0:02:57]} 4. g3 {[%clk 0:02:56]}  dxc4 {[%clk 0:02:51]} 5. Bg2 {[%clk 0:02:56]}  c5 {[%clk 0:02:50]} 6. O-O {[%clk 0:02:55]}  Nc6 {[%clk 0:02:49]} 7. dxc5 {[%clk 0:02:55]}  Bxc5 {[%clk 0:02:47]} 8. Qa4 {[%clk 0:02:43]}  O-O {[%clk 0:02:36]} 9. Qxc4 {[%clk 0:02:42]}  Be7 {[%clk 0:02:21]} 10. Nc3 {[%clk 0:02:42]}  e5 {[%clk 0:02:17]} 11. Rd1 {[%clk 0:02:40]}  Be6 {[%clk 0:02:10]} 12. Qb5 {[%clk 0:02:28]}  Qc7 {[%clk 0:01:56]} 13. Ng5 {[%clk 0:02:02]}  Bg4 {[%clk 0:01:45]} 14. Be3 {[%clk 0:01:50]}  Rad8 {[%clk 0:01:31]} 15. h3 {[%clk 0:01:45]}  Bh5 {[%clk 0:01:30]} 16. Rac1 {[%clk 0:01:21]}  Rxd1+ {[%clk 0:01:18]} 17. Rxd1 {[%clk 0:01:20]}  h6 {[%clk 0:00:49]} 18. Nge4 {[%clk 0:01:20]}  Nxe4 {[%clk 0:00:45]} 19. Bxe4 {[%clk 0:01:20]}  f5 {[%clk 0:00:13]} 20. Nd5 {[%clk 0:01:12]}  Qd6 {[%clk 0:00:12]} 21. Nxe7+ {[%clk 0:01:10]}  Qxe7 {[%clk 0:00:11]} 22. Bc5 {[%clk 0:01:08]}  Qg5 {[%clk 0:00:02]} 23. Bd5+ {[%clk 0:01:06]} 1-0


[Site "https://www.chess.com"]

[Event "Titled Tuesday Blitz February 21 Late 2023"]
[White "Rasulov, Vugar"]
[Black "Jimenez Garcia, Emmanuel"]
[WhiteFideId "13402390"]
[BlackFideId "6504779"]
[WhiteElo "2523"]
[BlackElo "2410"]
[Result "1-0"]
[Round "01"]
[TimeControl "180+2"]
[Date "2023.02.21"]
[WhiteClock "0:00:06"]
[BlackClock "0:00:04"]

1. Nf3 {[%clk 0:03:00]}  b6 {[%clk 0:02:59]} 2. e4 {[%clk 0:03:00]}  Bb7 {[%clk 0:03:00]} 3. Nc3 {[%clk 0:03:00]}  e6 {[%clk 0:03:01]} 4. a3 {[%clk 0:03:01]}  Nf6 {[%clk 0:03:00]} 5. Bd3 {[%clk 0:02:58]}  d5 {[%clk 0:03:00]} 6. Qe2 {[%clk 0:02:54]}  Be7 {[%clk 0:02:57]} 7. O-O {[%clk 0:02:52]}  O-O {[%clk 0:02:58]} 8. Re1 {[%clk 0:02:46]}  c5 {[%clk 0:02:58]} 9. exd5 {[%clk 0:02:46]}  Nxd5 {[%clk 0:02:59]} 10. Nxd5 {[%clk 0:02:45]}  Qxd5 {[%clk 0:02:56]} 11. Be4 {[%clk 0:02:38]}  Qxe4 {[%clk 0:02:56]} 12. Qxe4 {[%clk 0:02:39]}  Bxe4 {[%clk 0:02:57]} 13. Rxe4 {[%clk 0:02:40]}  Nc6 {[%clk 0:02:57]} 14. d3 {[%clk 0:02:40]}  Bf6 {[%clk 0:02:57]} 15. Rb1 {[%clk 0:02:39]}  Rfd8 {[%clk 0:02:58]} 16. b4 {[%clk 0:02:28]}  Nd4 {[%clk 0:02:43]} 17. Ne1 {[%clk 0:02:08]}  Nb5 {[%clk 0:02:34]} 18. Bb2 {[%clk 0:01:54]}  Bxb2 {[%clk 0:02:14]} 19. Rxb2 {[%clk 0:01:55]}  Nc3 {[%clk 0:02:13]} 20. Rc4 {[%clk 0:01:51]}  cxb4 {[%clk 0:02:09]} 21. axb4 {[%clk 0:01:48]}  Rac8 {[%clk 0:02:06]} 22. Rxc8 {[%clk 0:01:47]}  Rxc8 {[%clk 0:02:07]} 23. Kf1 {[%clk 0:01:47]}  a5 {[%clk 0:02:03]} 24. bxa5 {[%clk 0:01:37]}  bxa5 {[%clk 0:02:04]} 25. Rb3 {[%clk 0:01:32]}  a4 {[%clk 0:01:52]} 26. Ra3 {[%clk 0:01:32]}  f6 {[%clk 0:01:49]} 27. Nf3 {[%clk 0:01:28]}  Nb5 {[%clk 0:01:44]} 28. Ra2 {[%clk 0:01:21]}  Nc3 {[%clk 0:01:45]} 29. Ra1 {[%clk 0:01:15]}  Rb8 {[%clk 0:00:31]} 30. Ke1 {[%clk 0:01:15]}  Rb1+ {[%clk 0:00:15]} 31. Rxb1 {[%clk 0:01:15]}  Nxb1 {[%clk 0:00:16]} 32. Kd1 {[%clk 0:01:10]}  a3 {[%clk 0:00:15]} 33. Kc1 {[%clk 0:01:09]}  Nc3 {[%clk 0:00:14]} 34. Nd2 {[%clk 0:01:00]}  Kf7 {[%clk 0:00:14]} 35. f3 {[%clk 0:01:00]}  Na4 {[%clk 0:00:05]} 36. Kb1 {[%clk 0:00:57]}  Nc3+ {[%clk 0:00:04]} 37. Ka1 {[%clk 0:00:57]}  Nd1 {[%clk 0:00:02]} 38. g3 {[%clk 0:00:52]}  Ne3 {[%clk 0:00:01]} 39. c3 {[%clk 0:00:50]}  e5 {[%clk 0:00:02]} 40. Ka2 {[%clk 0:00:50]}  Nd1 {[%clk 0:00:02]} 41. c4 {[%clk 0:00:36]}  Nf2 {[%clk 0:00:02]} 42. Kxa3 {[%clk 0:00:37]}  Nxd3 {[%clk 0:00:02]} 43. Ka4 {[%clk 0:00:38]}  Ke6 {[%clk 0:00:01]} 44. Kb5 {[%clk 0:00:39]}  Kd6 {[%clk 0:00:01]} 45. Ne4+ {[%clk 0:00:35]}  Kc7 {[%clk 0:00:02]} 46. c5 {[%clk 0:00:36]}  Ne1 {[%clk 0:00:02]} 47. Nd6 {[%clk 0:00:27]}  Nxf3 {[%clk 0:00:02]} 48. Ne8+ {[%clk 0:00:28]}  Kd8 {[%clk 0:00:02]} 49. Nxg7 {[%clk 0:00:28]}  Nd4+ {[%clk 0:00:03]} 50. Kc4 {[%clk 0:00:26]}  Nf3 {[%clk 0:00:01]} 51. h4 {[%clk 0:00:21]}  Nd2+ {[%clk 0:00:02]} 52. Kd5 {[%clk 0:00:21]}  Nf1 {[%clk 0:00:03]} 53. Nf5 {[%clk 0:00:18]}  Kc7 {[%clk 0:00:02]} 54. c6 {[%clk 0:00:19]}  e4 {[%clk 0:00:01]} 55. Kxe4 {[%clk 0:00:13]}  Kxc6 {[%clk 0:00:02]} 56. g4 {[%clk 0:00:08]}  Kd7 {[%clk 0:00:03]} 57. Nd4 {[%clk 0:00:07]}  Ke7 {[%clk 0:00:03]} 58. Nb3 {[%clk 0:00:06]}  Kf7 {[%clk 0:00:03]} 59. Kf3 {[%clk 0:00:06]}  Nh2+ {[%clk 0:00:02]} 60. Kg3 {[%clk 0:00:06]}  Nf1+ {[%clk 0:00:03]} 61. Kf4 {[%clk 0:00:05]}  Kg6 {[%clk 0:00:02]} 62. Nd4 {[%clk 0:00:05]}  Nd2 {[%clk 0:00:01]} 63. Nf5 {[%clk 0:00:05]}  Nc4 {[%clk 0:00:02]} 64. Ne7+ {[%clk 0:00:05]}  Kf7 {[%clk 0:00:02]} 65. Nd5 {[%clk 0:00:06]}  Ne5 {[%clk 0:00:02]} 66. Kf5 {[%clk 0:00:06]}  Ng6 {[%clk 0:00:02]} 67. h5 {[%clk 0:00:06]}  Ne7+ {[%clk 0:00:03]} 68. Ke4 {[%clk 0:00:04]}  Ng8 {[%clk 0:00:01]} 69. Ne3 {[%clk 0:00:04]}  Nh6 {[%clk 0:00:02]} 70. Kf4 {[%clk 0:00:04]}  Ke7 {[%clk 0:00:02]} 71. Nd5+ {[%clk 0:00:03]}  Kf7 {[%clk 0:00:03]} 72. Nc7 {[%clk 0:00:03]}  Ng8 {[%clk 0:00:02]} 73. Nd5 {[%clk 0:00:03]}  Ne7 {[%clk 0:00:03]} 74. Ne3 {[%clk 0:00:03]}  Nc6 {[%clk 0:00:03]} 75. Nc4 {[%clk 0:00:03]}  Nd4 {[%clk 0:00:03]} 76. Nd6+ {[%clk 0:00:04]}  Ke6 {[%clk 0:00:03]} 77. Ne8 {[%clk 0:00:04]}  Ne2+ {[%clk 0:00:03]} 78. Kf3 {[%clk 0:00:04]}  Nd4+ {[%clk 0:00:04]} 79. Ke4 {[%clk 0:00:05]}  Nc6 {[%clk 0:00:03]} 80. Ng7+ {[%clk 0:00:05]}  Kf7 {[%clk 0:00:03]} 81. Nf5 {[%clk 0:00:06]}  Ne5 {[%clk 0:00:04]} 82. Ne3 {[%clk 0:00:04]}  Nd7 {[%clk 0:00:02]} 83. Kf5 {[%clk 0:00:04]}  Nc5 {[%clk 0:00:02]} 84. Nd5 {[%clk 0:00:05]}  Ne6 {[%clk 0:00:02]} 85. Nxf6 {[%clk 0:00:03]}  Ng7+ {[%clk 0:00:02]} 86. Ke5 {[%clk 0:00:03]}  h6 {[%clk 0:00:03]} 87. Ne4 {[%clk 0:00:03]}  Ne6 {[%clk 0:00:01]} 88. Nd6+ {[%clk 0:00:03]}  Ke7 {[%clk 0:00:01]} 89. Nf5+ {[%clk 0:00:04]}  Kf7 {[%clk 0:00:01]} 90. Nxh6+ {[%clk 0:00:05]}  Ke7 {[%clk 0:00:02]} 91. Kf5 {[%clk 0:00:04]}  Ng7+ {[%clk 0:00:02]} 92. Kg6 {[%clk 0:00:04]}  Ne6 {[%clk 0:00:03]} 93. Nf5+ {[%clk 0:00:05]}  Kf8 {[%clk 0:00:04]} 94. h6 {[%clk 0:00:05]}  Kg8 {[%clk 0:00:04]} 95. g5 {[%clk 0:00:05]}  Nxg5 {[%clk 0:00:03]} 96. Kxg5 {[%clk 0:00:05]}  Kh8 {[%clk 0:00:04]} 97. Kh5 {[%clk 0:00:06]} 1-0


[Site "https://www.chess.com"]

[Event "Titled Tuesday Blitz February 21 Late 2023"]
[White "Becerra, Juan David"]
[Black "Perez Ponsa, Federico"]
[WhiteFideId "4404998"]
[BlackFideId "117927"]
[WhiteElo "2382"]
[BlackElo "2532"]
[Result "0-1"]
[Round "01"]
[TimeControl "180+2"]
[Date "2023.02.21"]
[WhiteClock "0:00:19"]
[BlackClock "0:00:10"]

1. d4 {[%clk 0:02:56]}  Nf6 {[%clk 0:03:00]} 2. c4 {[%clk 0:02:56]}  g6 {[%clk 0:02:59]} 3. Nc3 {[%clk 0:02:55]}  Bg7 {[%clk 0:02:46]} 4. e4 {[%clk 0:02:55]}  d6 {[%clk 0:02:47]} 5. Nf3 {[%clk 0:02:55]}  O-O {[%clk 0:02:48]} 6. Be2 {[%clk 0:02:54]}  e5 {[%clk 0:02:46]} 7. d5 {[%clk 0:02:55]}  a5 {[%clk 0:02:46]} 8. Bg5 {[%clk 0:02:53]}  h6 {[%clk 0:02:46]} 9. Be3 {[%clk 0:02:52]}  Ng4 {[%clk 0:02:45]} 10. Bd2 {[%clk 0:02:52]}  f5 {[%clk 0:02:45]} 11. h3 {[%clk 0:02:52]}  Nf6 {[%clk 0:02:45]} 12. exf5 {[%clk 0:02:52]}  gxf5 {[%clk 0:02:46]} 13. Qc1 {[%clk 0:02:52]}  f4 {[%clk 0:02:46]} 14. g3 {[%clk 0:02:52]}  e4 {[%clk 0:02:47]} 15. Nd4 {[%clk 0:02:41]}  Ne8 {[%clk 0:02:09]} 16. Ne6 {[%clk 0:02:36]}  Bxe6 {[%clk 0:02:08]} 17. dxe6 {[%clk 0:02:37]}  e3 {[%clk 0:02:06]} 18. fxe3 {[%clk 0:02:35]}  f3 {[%clk 0:02:05]} 19. Bd3 {[%clk 0:02:29]}  Nc6 {[%clk 0:02:05]} 20. a3 {[%clk 0:02:12]}  Ne5 {[%clk 0:02:00]} 21. Qc2 {[%clk 0:02:07]}  f2+ {[%clk 0:01:51]} 22. Ke2 {[%clk 0:01:55]}  Qf6 {[%clk 0:01:43]} 23. Be4 {[%clk 0:01:49]}  c6 {[%clk 0:01:33]} 24. Raf1 {[%clk 0:01:45]}  Qxe6 {[%clk 0:00:39]} 25. b3 {[%clk 0:01:26]}  Nf6 {[%clk 0:00:24]} 26. Bf5 {[%clk 0:01:23]}  Qe7 {[%clk 0:00:24]} 27. Rxf2 {[%clk 0:01:19]}  d5 {[%clk 0:00:21]} 28. c5 {[%clk 0:00:49]}  d4 {[%clk 0:00:14]} 29. Na4 {[%clk 0:00:40]}  Nd5 {[%clk 0:00:11]} 30. Qe4 {[%clk 0:00:27]}  dxe3 {[%clk 0:00:08]} 31. Bxe3 {[%clk 0:00:28]}  Rae8 {[%clk 0:00:08]} 32. Bh7+ {[%clk 0:00:22]}  Kh8 {[%clk 0:00:08]} 33. Rxf8+ {[%clk 0:00:23]}  Qxf8 {[%clk 0:00:09]} 34. Rf1 {[%clk 0:00:18]}  Nf6 {[%clk 0:00:09]} 35. Qg6 {[%clk 0:00:19]}  Nxg6 {[%clk 0:00:10]} 0-1


[Site "https://www.chess.com"]

[Event "Titled Tuesday Blitz February 21 Late 2023"]
[White "Koutlas, Nikolaos"]
[Black "Dardha, Daniel"]
[WhiteFideId "25827138"]
[BlackFideId "240990"]
[WhiteElo "2341"]
[BlackElo "2631"]
[Result "0-1"]
[Round "01"]
[TimeControl "180+2"]
[Date "2023.02.21"]
[WhiteClock "0:00:03"]
[BlackClock "0:00:17"]

1. c4 {[%clk 0:02:56]}  e5 {[%clk 0:02:56]} 2. Nc3 {[%clk 0:02:55]}  Nf6 {[%clk 0:02:55]} 3. Nf3 {[%clk 0:02:56]}  e4 {[%clk 0:02:54]} 4. Ng5 {[%clk 0:02:55]}  c6 {[%clk 0:02:55]} 5. Ngxe4 {[%clk 0:02:53]}  Nxe4 {[%clk 0:02:56]} 6. Nxe4 {[%clk 0:02:54]}  d5 {[%clk 0:02:57]} 7. cxd5 {[%clk 0:02:54]}  cxd5 {[%clk 0:02:58]} 8. Ng3 {[%clk 0:02:54]}  h5 {[%clk 0:02:58]} 9. e3 {[%clk 0:02:54]}  h4 {[%clk 0:02:56]} 10. Ne2 {[%clk 0:02:51]}  Nc6 {[%clk 0:02:56]} 11. d4 {[%clk 0:02:49]}  Bf5 {[%clk 0:02:55]} 12. Nf4 {[%clk 0:02:47]}  g5 {[%clk 0:02:35]} 13. Bd3 {[%clk 0:02:39]}  Qd7 {[%clk 0:02:14]} 14. Bxf5 {[%clk 0:02:11]}  Qxf5 {[%clk 0:02:15]} 15. Qd3 {[%clk 0:02:10]}  Qd7 {[%clk 0:02:03]} 16. Ne2 {[%clk 0:02:10]}  Nb4 {[%clk 0:02:02]} 17. Qb3 {[%clk 0:01:59]}  h3 {[%clk 0:02:01]} 18. gxh3 {[%clk 0:01:51]}  Qf5 {[%clk 0:01:47]} 19. Ng3 {[%clk 0:01:38]}  Nc2+ {[%clk 0:01:29]} 20. Ke2 {[%clk 0:01:02]}  Nxa1 {[%clk 0:01:29]} 21. Qxb7 {[%clk 0:01:00]}  Qc8 {[%clk 0:01:08]} 22. Qxd5 {[%clk 0:01:00]}  Rh6 {[%clk 0:00:55]} 23. Bd2 {[%clk 0:00:54]}  Nc2 {[%clk 0:00:51]} 24. Rc1 {[%clk 0:00:47]}  Rc6 {[%clk 0:00:47]} 25. Qe4+ {[%clk 0:00:22]}  Qe6 {[%clk 0:00:37]} 26. d5 {[%clk 0:00:18]}  Qxe4 {[%clk 0:00:34]} 27. Nxe4 {[%clk 0:00:18]}  Rcc8 {[%clk 0:00:31]} 28. Nf6+ {[%clk 0:00:08]}  Kd8 {[%clk 0:00:28]} 29. Ba5+ {[%clk 0:00:08]}  Ke7 {[%clk 0:00:27]} 30. Ne4 {[%clk 0:00:07]}  Nd4+ {[%clk 0:00:26]} 31. Kd1 {[%clk 0:00:05]}  Rxc1+ {[%clk 0:00:26]} 32. Kxc1 {[%clk 0:00:06]}  Nf3 {[%clk 0:00:24]} 33. Bb4+ {[%clk 0:00:06]}  Kd7 {[%clk 0:00:23]} 34. d6 {[%clk 0:00:07]}  f5 {[%clk 0:00:18]} 35. Nf6+ {[%clk 0:00:03]}  Ke6 {[%clk 0:00:18]} 36. Nh7 {[%clk 0:00:03]}  Bxd6 {[%clk 0:00:17]} 0-1


[Site "https://www.chess.com"]

[Event "Titled Tuesday Blitz February 21 Late 2023"]
[White "Kochetov, Andrey"]
[Black "Chigaev, Maksim"]
[WhiteFideId "24130532"]
[BlackFideId "4108116"]
[WhiteElo "2165"]
[BlackElo "2628"]
[Result "0-1"]
[Round "01"]
[TimeControl "180+2"]
[Date "2023.02.21"]
[WhiteClock "0:00:05"]
[BlackClock "0:00:30"]

1. e4 {[%clk 0:03:00]}  c5 {[%clk 0:02:59]} 2. Nf3 {[%clk 0:03:00]}  e6 {[%clk 0:02:59]} 3. d4 {[%clk 0:03:01]}  cxd4 {[%clk 0:03:00]} 4. Nxd4 {[%clk 0:03:01]}  Nf6 {[%clk 0:03:01]} 5. Nc3 {[%clk 0:02:58]}  Nc6 {[%clk 0:03:01]} 6. Nxc6 {[%clk 0:02:48]}  bxc6 {[%clk 0:03:02]} 7. e5 {[%clk 0:02:49]}  Nd5 {[%clk 0:03:02]} 8. Ne4 {[%clk 0:02:49]}  Bb7 {[%clk 0:03:02]} 9. f4 {[%clk 0:02:45]}  c5 {[%clk 0:02:58]} 10. Bd3 {[%clk 0:02:35]}  Nb6 {[%clk 0:02:41]} 11. Qe2 {[%clk 0:02:16]}  c4 {[%clk 0:02:32]} 12. Bxc4 {[%clk 0:02:15]}  Nxc4 {[%clk 0:02:26]} 13. Qxc4 {[%clk 0:02:16]}  Qh4+ {[%clk 0:02:08]} 14. g3 {[%clk 0:02:01]}  Qh3 {[%clk 0:02:08]} 15. Nf2 {[%clk 0:01:58]}  Qg2 {[%clk 0:02:01]} 16. Be3 {[%clk 0:01:52]}  Rc8 {[%clk 0:01:50]} 17. Qd3 {[%clk 0:01:29]}  Qf3 {[%clk 0:01:37]} 18. Rd1 {[%clk 0:01:14]}  Qc6 {[%clk 0:01:28]} 19. c3 {[%clk 0:01:01]}  Be7 {[%clk 0:01:28]} 20. Kd2 {[%clk 0:00:55]}  Qa4 {[%clk 0:01:23]} 21. Rhe1 {[%clk 0:00:18]}  Qxa2 {[%clk 0:01:23]} 22. Qc2 {[%clk 0:00:12]}  O-O {[%clk 0:01:13]} 23. Ra1 {[%clk 0:00:13]}  Qd5+ {[%clk 0:01:11]} 24. Kc1 {[%clk 0:00:13]}  a6 {[%clk 0:01:11]} 25. Qd3 {[%clk 0:00:08]}  Qg2 {[%clk 0:01:05]} 26. Qxd7 {[%clk 0:00:07]}  Bc5 {[%clk 0:01:02]} 27. Bxc5 {[%clk 0:00:06]}  Rxc5 {[%clk 0:01:03]} 28. Qd4 {[%clk 0:00:06]}  Rd5 {[%clk 0:00:59]} 29. Qe3 {[%clk 0:00:05]}  Rfd8 {[%clk 0:00:59]} 30. Ra4 {[%clk 0:00:04]}  Qxh2 {[%clk 0:00:53]} 31. Ne4 {[%clk 0:00:04]}  Rd3 {[%clk 0:00:50]} 32. Qe2 {[%clk 0:00:03]}  Qxe2 {[%clk 0:00:31]} 33. Rxe2 {[%clk 0:00:04]}  Bxe4 {[%clk 0:00:30]} 34. Raxe4 {[%clk 0:00:04]}  Rxg3 {[%clk 0:00:31]} 35. c4 {[%clk 0:00:04]}  h5 {[%clk 0:00:31]} 36. c5 {[%clk 0:00:04]}  Rc8 {[%clk 0:00:29]} 37. Rc4 {[%clk 0:00:04]}  h4 {[%clk 0:00:30]} 38. Rh2 {[%clk 0:00:04]}  h3 {[%clk 0:00:30]} 39. Kc2 {[%clk 0:00:05]}  Rg2+ {[%clk 0:00:30]} 0-1


[Site "https://www.chess.com"]